Cogmind - Beta 14 @@@ ROGUE MODE // 2024.08.12 @ 16:30:28 Player: ktur Result: Destroyed by S-43 Plague with Heavy Machine Gun Performance ------------- Evolutions (7) 3500 Regions Visited (22) 4400 Robots Destroyed (195) 975 Value Destroyed (8033) 8033 Prototype IDs (55) 1100 Alien Tech Used (1) 200 Bonus (5115) 5115 TOTAL SCORE: 23323 Bonus ------- High Alert Combat Kills 578 Follower Combat Kills 4379 Registered with UFD 300 Met Imprinter 300 Met Zhirov 300 Friendly Fire -742 Cogmind --------- Core Integrity 0/1300 Matter 285/300 Energy 88/100 System Corruption 4% Temperature Cool (0) Movement Core (50) Location -3/Section 7 Parts ------- > --- POWER (2) -------- (None) > --- PROPULSION (3) --- Biometal Leg Biometal Leg > --- UTILITY (13) ----- Experimental Coolant Injector Spectral Analyzer Advanced Hacking Suite Advanced Hacking Suite > --- WEAPON (3) ------- (None) > --- INVENTORY (5) ---- Improved Remote Datajack Junk Cannon (0) Core Stripper Peak State ------------ > --- POWER ------------ Heavy Antimatter Reactor Particle Reactor > --- PROPULSION ------- Medium Treads Overtuned Huge Scrapsphere > --- UTILITY ---------- Scrap Suit Large Storage Unit Spectral Analyzer Advanced Transmission Jammer Hardened Heavy Armor Plating Advanced Hacking Suite Advanced Hacking Suite Advanced Hacking Suite Advanced Hacking Suite Advanced System Shield Amulet of Y3-NDR > --- WEAPON ----------- Overtuned Quantum Rifle Overtuned Railgun Overtuned Railgun > --- INVENTORY -------- Experimental Coolant Injector Advanced Energy Well Improved Matter Compressor Makeshift Salvage Targeting Computer Improved Weapon Shielding Improved Trap Extractor Dimensional Node Initializer Transdimensional Reconstructor Heavy Hardcell Cannon Tiamat Missile Launcher Improved Remote Datajack Junk Cannon Powered Hammer [Rating: 138] Favorites ----------- Power Subdweller Power Source Engine Subdweller Power Source Power Core Neutrino Core Reactor Heavy Antimatter Reactor Propulsion Light Treads Treads Light Treads Leg Cargo Legs Wheel Overtuned Huge Scrapsphere Hover Unit Gyrokinetic Inverter Utility Large Storage Unit Device Amulet of Y3-NDR Storage Large Storage Unit Processor Spectral Analyzer Hackware Advanced Hacking Suite Protection Improved Weapon Shielding Weapon Junk Cannon Energy Gun Subdweller Laser Energy Cannon Subdweller Beam Cannon Ballistic Gun Overtuned Coil Gun Ballistic Cannon Light Cannon Launcher Rocket Array Special Weapon Junk Cannon Impact Weapon Powered Hammer Slashing Weapon Great Axe Build | -11 -10 -10 -9 -9 -6 -6 -6 -6 -5 -5 -5 -5 -5 -4 -4 -4 -4 -4 -3 -3 -3 -3 ------- Run | Yrd Mat Sub Rec Scr Fac Low Low Zio Pro Fac Upp Upp Zhi Pro Fac Upp Upp War Pro Res Qua Sec Slots Evolved 14 | . . . . . 8 . . . . 2 . . . . 2 . . . . 2 . . Power 1 | . . . . . . . . . . 1 . . . . . . . . . . . . Propulsion 1 | . . . . . 1 . . . . . . . . . . . . . . . . . Utility 11 | . . . . . 6 . . . . 1 . . . . 2 . . . . 2 . . Weapon 1 | . . . . . 1 . . . . . . . . . . . . . . . . . Parts Attached 307 | 7 3 48 2 16 53 4 6 5 19 31 4 9 13 5 20 3 4 3 5 28 17 2 Power 21 | 1 . 4 . 1 3 . . . 1 3 . 1 1 . . . 1 . . 5 . . Engine 8 | 1 . 4 . 1 1 . . . . 1 . . . . . . . . . . . . Core 4 | . . . . . 2 . . . 1 1 . . . . . . . . . . . . Reactor 9 | . . . . . . . . . . 1 . 1 1 . . . 1 . . 5 . . Propulsion 36 | 2 . 7 1 5 4 . 1 . . 5 . . . . 2 . . 3 . 2 2 2 Treads 11 | 2 . 3 1 1 1 . . . . . . . . . . . . 2 . 1 . . Leg 7 | . . . . 1 3 . 1 . . . . . . . . . . . . . . 2 Wheel 17 | . . 4 . 3 . . . . . 4 . . . . 2 . . 1 . 1 2 . Hover 1 | . . . . . . . . . . 1 . . . . . . . . . . . . Flight . | . . . . . . . . . . . . . . . . . . . . . . . Utility 135 | 2 1 15 1 2 21 1 5 4 6 14 2 4 9 2 15 2 3 . 3 11 12 . Device 56 | 1 . 9 1 1 7 . 3 2 2 3 2 3 1 1 5 1 1 . . 4 9 . Storage 7 | 1 1 . . 1 1 . 1 . . 1 . . 1 . . . . . . . . . Processor 1 | . . . . . 1 . . . . . . . . . . . . . . . . . Hackware 18 | . . . . . 3 . . . . 3 . . 1 . 6 . 1 . 1 3 . . Protection 53 | . . 6 . . 9 1 1 2 4 7 . 1 6 1 4 1 1 . 2 4 3 . Artifact . | . . . . . . . . . . . . . . . . . . . . . . . Weapon 115 | 2 2 22 . 8 25 3 . 1 12 9 2 4 3 3 3 1 . . 2 10 3 . Energy Gun 10 | . . 6 . 1 . . . . . . . . . . . . . . . 2 1 . Energy Cannon 1 | . . 1 . . . . . . . . . . . . . . . . . . . . Ballistic Gun 33 | 2 1 7 . 2 4 . . . . 3 1 2 3 2 . . . . . 5 1 . Ballistic Cannon 3 | . . 1 . . 2 . . . . . . . . . . . . . . . . . Launcher 10 | . . . . . 3 1 . . 4 1 . . . . . . . . 1 . . . Special Weapon 38 | . 1 7 . 2 8 1 . 1 5 4 1 2 . 1 1 1 . . . 2 1 . Impact Weapon 4 | . . . . 1 . . . . . . . . . . 1 . . . 1 1 . . Slashing Weapon 16 | . . . . 2 8 1 . . 3 1 . . . . 1 . . . . . . . Piercing Weapon . | . . . . . . . . . . . . . . . . . . . . . . . Special Melee Weapon . | . . . . . . . . . . . . . . . . . . . . . . . Unidentified Prototypes 12 | . . 1 . 1 . 1 1 . 1 1 . . 5 . 1 . . . . . . . Corrupted Parts 2 | . . . . . . . . . . 1 . . . . . . . . . 1 . . System Corruption 10 | . . . . . . . . . . 5 . . . . . . . . . 5 . . Parts Lost 64 | . . 5 . . 8 . . . 3 6 . . . . 8 . 1 . 1 15 16 1 Power 9 | . . 2 . . 1 . . . 1 . . . . . 1 . . . . 2 2 . Propulsion 10 | . . 1 . . 1 . . . . 3 . . . . . . . . . 2 2 1 Utility 33 | . . 1 . . 5 . . . 2 2 . . . . 6 . 1 . 1 6 9 . Weapon 12 | . . 1 . . 1 . . . . 1 . . . . 1 . . . . 5 3 . Highest Loss Streak 8 | . . 2 . . 3 . . . 3 2 . . . . 5 . 1 . 1 7 8 1 To Critical Strikes 1 | . . . . . . . . . . . . . . . . . . . . . 1 . Average Slot Usage (%) 79 | . 100 99 97 72 77 73 73 72 71 52 82 81 65 81 83 81 75 77 77 73 70 24 Engine 6 | . 14 13 14 13 1 5 5 5 3 2 5 1 . . . . . . . . . . Core 1 | . . . . . 3 . . . . . 5 5 5 5 4 . . . . . . . Reactor 2 | . . . . . . . . . . . . 3 5 5 5 5 8 10 10 7 6 . Treads 6 | . 28 22 18 5 3 . . . . . . . . . . . . . . 1 . . Leg 1 | . . . . . 5 10 10 10 10 2 . . . . . . . . . . . 2 Wheel 8 | . . 5 9 22 . . . . . 3 11 11 11 11 10 9 5 4 5 3 5 3 Device 11 | . 14 12 14 2 11 15 13 14 10 6 17 17 17 16 14 15 14 15 13 9 17 4 Storage 8 | . 14 14 14 14 5 5 6 5 5 2 5 5 5 5 5 5 5 5 5 4 3 . Processor 2 | . . . . . 4 5 5 5 5 5 5 5 5 5 5 5 5 5 5 4 4 4 Hackware 6 | . . . . . 9 5 5 5 4 5 . . 1 5 18 22 14 15 16 21 15 9 Protection 6 | . . 1 . . 14 15 14 15 19 11 11 11 8 5 4 6 10 10 10 6 2 . Energy Gun 1 | . . 9 . . . . . . . . . . . . . . . . . 1 3 . Ballistic Gun 6 | . 26 12 12 3 6 . . . . 1 17 16 1 16 8 . . . . 3 3 . Special Weapon 3 | . 1 4 . 5 1 4 5 4 5 2 . . . . 2 5 5 5 5 1 . . Slashing Weapon 1 | . . . . 3 4 5 5 5 4 1 . . . . . . . . . . . . Peak Build Rating 138 | 7 8 18 15 29 91 95 99 100 103 99 99 102 105 105 124 114 114 115 115 138 132 50 Average Rating 64 | 5 7 12 14 20 78 94 95 96 95 69 97 100 83 104 115 112 110 112 112 117 112 44 On Entrance 76 | . 7 8 17 10 29 91 95 98 98 80 90 99 101 105 105 111 106 113 113 112 127 46 Naked Turns . | . . . . . . . . . . . . . . . . . . . . . . . Heaviest Build 228 | 12 28 38 38 219 228 75 150 75 77 88 81 97 93 93 92 79 95 95 96 107 101 . Greatest Support 75 | 40 40 40 40 40 75 75 75 75 75 75 32 32 32 32 36 36 20 75 20 28 30 3 Greatest Overweight (x) 31 | . . 1 1 12 8 . 1 . 1 21 2 3 2 2 4 4 31 31 31 29 5 . Average Overweight (x) 2 | . . . . 5 . . . . . . 2 2 1 2 1 2 4 5 4 3 2 . Largest Inventory Capacity 35 | 8 15 15 15 35 35 15 25 15 15 15 15 15 15 15 15 15 15 15 15 15 15 5 Average Capacity 17 | 7 13 15 15 31 15 15 18 15 15 9 15 15 15 15 15 15 15 15 15 15 12 5 Most Carried 35 | 6 13 15 15 35 35 15 15 15 15 15 15 15 15 15 15 14 15 15 15 15 15 5 Average Carried 16 | 2 9 14 14 29 15 15 14 14 14 7 12 14 14 14 14 11 14 15 14 14 12 5 Final Capacity 35 | 8 15 15 15 35 15 15 15 15 15 15 15 15 15 15 15 15 15 15 15 15 5 5 Final Carried 35 | 5 13 15 15 35 15 15 15 15 15 13 15 15 15 15 10 14 15 15 14 15 5 5 Class Distribution -------------------- 28% | Mutant 21% | Hacker-Mutant 16% | Scavenger-Mutant 15% | Hauler-Mutant 10% | Scavenger-Scrapper 3% | Wizard-Mutant Dominant Class ---------------- Mutant | -10/Materials Scavenger-Mutant | -10/Subcaves Scavenger-Mutant | -9/Recycling Hauler-Mutant | -9/Scraptown Hacker-Mutant | -6/Factory Mutant | -6/Lower Caves Mutant | -6/Lower Caves Mutant | -6/Zion Mutant | -5/Proximity Caves Mutant | -5/Factory Scavenger-Scrapper | -5/Upper Caves Scavenger-Scrapper | -5/Upper Caves Scavenger-Mutant | -5/Zhirov Scavenger-Scrapper | -4/Proximity Caves Scavenger-Scrapper | -4/Factory Wizard-Mutant | -4/Upper Caves Hacker-Mutant | -4/Upper Caves Hacker-Mutant | -4/Warlord Hacker-Mutant | -3/Proximity Caves Hacker-Mutant | -3/Research Hacker-Mutant | -3/Quarantine Hacker-Mutant | -3/Section 7 Resources | -11 -10 -10 -9 -9 -6 -6 -6 -6 -5 -5 -5 -5 -5 -4 -4 -4 -4 -4 -3 -3 -3 -3 ----------- Run | Yrd Mat Sub Rec Scr Fac Low Low Zio Pro Fac Upp Upp Zhi Pro Fac Upp Upp War Pro Res Qua Sec Matter Collected 6413 | 278 258 775 36 409 963 73 38 43 329 437 483 104 . 315 318 72 56 . 62 1116 248 . Remotely . | . . . . . . . . . . . . . . . . . . . . . . . Salvage Created 8323 | 30 252 640 107 . 1117 406 . . 806 796 . 35 . 64 927 70 164 . 263 1823 823 . Parts 372 | 3 21 49 5 . 59 10 . . 25 29 . 4 . 1 43 1 5 . 9 90 18 . Haulers Intercepted 6 | . 2 . . . 1 . . . 1 1 . . . . 1 . . . . . . . Recyclers Shooed 8 | . 2 . . . 3 . . . . 2 . . . . . . . . . 1 . . Parts Field Recycled . | . . . . . . . . . . . . . . . . . . . . . . . Retrieved Matter . | . . . . . . . . . . . . . . . . . . . . . . . Parts Self-Destructed 111 | . . 18 . . . 5 . . 23 . 10 10 . 10 . 5 16 . 14 . . . Prevented 94 | . . . . . . . . . 25 . 17 7 . 11 . 10 10 . 14 . . . Kills | -11 -10 -10 -9 -9 -6 -6 -6 -6 -5 -5 -5 -5 -5 -4 -4 -4 -4 -4 -3 -3 -3 -3 ------- Run | Yrd Mat Sub Rec Scr Fac Low Low Zio Pro Fac Upp Upp Zhi Pro Fac Upp Upp War Pro Res Qua Sec Combat Hostiles Destroyed 148 | . 5 19 2 . 22 11 . . 25 13 . . . 1 13 . 2 . 7 19 9 . Melee 6 | . . . . . 4 . . . 1 . . . . . . . . . . . 1 . Guns 57 | . 5 15 . . 6 . . . . 4 . . . . 5 . . . . 17 5 . Cannons 23 | . . 4 2 . 5 2 . . 2 2 . . . . 3 . 2 . 1 . . . AOE 36 | . . . . . 4 4 . . 19 3 . . . . 2 . . . 4 . . . Classes Destroyed 19 | 1 4 2 2 . 6 . . . 1 2 . 1 . . . . . . . . . . Worker 15 | . . . . . 2 . . . . 2 . . . . 4 . . . . 6 1 . Builder 10 | . 1 . . . 3 . . . . 2 . . . . . . . . . 3 1 . Tunneler 3 | 1 . . . . . . . . . . . . . . 1 . . . . 1 . . Hauler 6 | . 2 . . . 1 . . . 1 1 . . . . 1 . . . . . . . Recycler 4 | . . . . . 1 . . . . 1 . . . . . . . . . 1 1 . Minesweeper 1 | . . . . . . . . . . . . 1 . . . . . . . . . . Mechanic 2 | . . . . . . . . . . 1 . . . . 1 . . . . . . . Watcher 3 | . . . . . 1 . . . . . . . . . 1 . . . . 1 . . Swarmer 43 | . 3 3 . . 7 5 . . 11 8 . . . . . . . . 6 . . . Grunt 48 | . 2 . . . 6 4 . . 11 4 . . . . 5 . . . . 9 7 . Brawler 2 | . . . . . . . . . 1 . . . . . . . . . . 1 . . Duelist 2 | . . . 1 . . 1 . . . . . . . . . . . . . . . . Sentry 11 | . . . 1 . 3 1 . . 1 1 . . . . . . . . . 4 . . Hunter 12 | . . . . . 4 . . . . . . . . 1 4 . 1 . . . 2 . Programmer 12 | . . . . . 1 . . . 1 . . . . . 4 . 1 . . 5 . . Behemoth 2 | . . . . . 1 . . . . . . . . . . . . . 1 . . . Artisan 1 | . . 1 . . . . . . . . . . . . . . . . . . . . Subdweller 16 | . . 16 . . . . . . . . . . . . . . . . . . . . Scrapoid 1 | . . . . . . . . . . 1 . . . . . . . . . . . . Wizard 2 | . . . . . . . . . . . . . . . 1 . 1 . . . . . Best Kill Streak 10 | 1 3 3 1 . 7 4 . . 10 9 . 1 . 1 9 . 1 . 4 9 4 . Combat Bots Only 10 | . 3 3 1 . 6 4 . . 10 5 . . . 1 3 . 1 . 4 4 3 . Max Kills in Single Turn 6 | 1 1 1 1 . 2 2 . . 6 3 . 1 . 1 3 . 1 . 4 2 1 . Gunslinging . | . . . . . . . . . . . . . . . . . . . . . . . Exploded 6 | . . . . . 2 2 . . 6 3 . . . . 1 . . . 4 . . . Melee 1 | . . . . . 1 . . . 1 . . . . . . . . . . . 1 . Uniques/NPCs Destroyed . | . . . . . . . . . . . . . . . . . . . . . . . Combat | -11 -10 -10 -9 -9 -6 -6 -6 -6 -5 -5 -5 -5 -5 -4 -4 -4 -4 -4 -3 -3 -3 -3 -------- Run | Yrd Mat Sub Rec Scr Fac Low Low Zio Pro Fac Upp Upp Zhi Pro Fac Upp Upp War Pro Res Qua Sec Hostile Shots Fired 1364 | . 12 85 1 . 266 32 . . 101 151 1 1 . 23 168 2 25 . 23 285 171 17 Missed 437 | . 1 22 . . 94 16 . . 29 42 1 . . 11 62 . 9 . 5 87 56 2 Damage Taken 16629 | . 130 1401 33 . 1898 247 . . 1590 1617 . 13 . 201 2242 18 279 . 388 4074 2158 340 Core 2865 | . . 172 . . 238 20 . . 171 573 . . . 14 260 . 30 . 83 579 566 159 Absorbed by Shields 990 | . . . . . 59 . . . . 239 . 5 . 10 492 8 102 . 75 . . . Redirected to Shielding 630 | . . . . . 37 23 . . 81 100 . . . . 225 . 7 . 38 86 33 . Ignored by Resistances 579 | . . 73 . . . . . . . . . . . . 66 10 65 . 29 185 151 . Regen/Repaired (Parts) 335 | . . . . . . . . . . 95 . . 10 . 113 . . . . 90 27 . Core Remaining (%) 57 | 100 . . . 31 . . . . 49 . . . . 41 . . . . 67 . . . Volleys Fired 487 | 2 28 92 3 . 66 14 . . 18 42 2 5 . 6 45 . 16 . 12 95 41 . Largest 3 | 2 2 2 2 . 2 1 . . 1 3 1 3 . 1 3 . 1 . 1 3 2 . Hottest 200 | 40 120 120 110 . 56 39 . . 45 97 . 97 . . 97 . . . 46 200 160 . Shots Fired 781 | 4 53 153 6 . 91 14 . . 18 63 4 16 . 6 73 . 16 . 12 190 62 . Gun 546 | 4 42 107 3 . 50 . . . . 39 2 16 . . 42 . . . . 188 53 . Cannon 42 | . . 18 3 . 21 . . . . . . . . . . . . . . . . . Launcher 15 | . . . . . 3 2 . . 6 3 . . . . . . . . 1 . . . Special 178 | . 11 28 . . 17 12 . . 12 21 2 . . 6 31 . 16 . 11 2 9 . Kinetic 476 | 4 42 68 3 . 71 . . . . 39 2 16 . . 42 . . . . 163 26 . Thermal 151 | . 11 85 3 . . . . . . . . . . . . . . . . 25 27 . Explosive 15 | . . . . . 3 2 . . 6 3 . . . . . . . . 1 . . . Electromagnetic . | . . . . . . . . . . . . . . . . . . . . . . . Impact 134 | . . . . . 16 12 . . 12 19 . . . 6 31 . 16 . 11 2 9 . Robot Hit Streak 23 | 2 15 23 2 . 8 8 . . 14 12 5 2 . 3 8 . 6 . 7 12 4 . Robot Miss Streak 9 | 1 2 2 2 . 6 2 . . 4 6 . 3 . 2 3 . 1 . 2 9 4 . Penetration Max 2 | . . . . . . . . . . 1 . . . . 1 . . . . 2 2 . Secondary Targets 5 | . . 1 . . . . . . . 1 . . . . 1 . . . . 2 . . Max Gunslinging Chain 1 | . . 1 . . . . . . . 1 . . . . 1 . . . . 1 . . Shots Hit Robots 558 | 2 24 100 2 . 110 10 . . 24 42 4 6 . 3 45 1 13 . 8 127 37 . Core Hits 310 | 1 12 34 2 . 83 7 . . 56 19 1 2 . . 26 . 2 . 4 47 14 . Critical Kills 13 | . 1 1 . . . 1 . . 1 2 . . . . 1 . . . . 5 1 . Critical Parts Destroyed 30 | . . . . . 1 3 . . 2 5 . . . 1 4 . . . 3 6 5 . Critical Strikes 57 | . 1 5 . . 8 4 . . 6 7 . . . 1 5 . . . 3 11 6 . Destroy 24 | . 1 3 . . . . . . . 4 . . . . 2 . . . . 11 3 . Blast 5 | . . 2 . . 3 . . . . . . . . . . . . . . . . . Smash 21 | . . . . . 1 4 . . 3 3 . . . 1 3 . . . 3 . 3 . Sever 7 | . . . . . 4 . . . 3 . . . . . . . . . . . . . Melee Attacks 113 | . . . . . 52 3 1 1 15 4 . . . . 6 2 . . 1 14 14 . Impact 34 | . . . . . . . . . . . . . . . 3 2 . . 1 14 14 . Slashing 79 | . . . . . 52 3 1 1 15 4 . . . . 3 . . . . . . . Piercing . | . . . . . . . . . . . . . . . . . . . . . . . Sneak Attacks 19 | . . . . . 10 . . . 2 3 . . . . . . . . . 3 1 . Combat Hostiles 1 | . . . . . . . . . 1 . . . . . . . . . . . . . Follow-up Attacks . | . . . . . . . . . . . . . . . . . . . . . . . Damage Inflicted 26572 | 22 332 1817 65 . 4261 952 . . 2982 2670 47 209 . 253 3454 55 1150 . 922 5510 1870 1 Guns 10248 | 22 307 1575 . . 786 . . . . 684 47 209 . . 844 . . . . 4767 1007 . Cannons 793 | . . 242 57 . 494 . . . . . . . . . . . . . . . . . Explosions 4171 | . . . . . 394 373 . . 1603 355 . . . . 1119 . . . 327 . . . Melee 3300 | . . . . . 1671 . . . 404 220 . . . . 94 55 . . . 493 363 . Ramming 14 | . 1 . 8 . . . . . . . . . . . 4 . . . . . . 1 Kinetic 9044 | 22 307 829 . . 1280 . . . . 684 47 209 . . 844 . . . . 4251 571 . Thermal 2091 | . 24 988 57 . . . . . . . . . . . 70 . . . . 516 436 . Explosive 4101 | . . . . . 394 373 . . 1603 355 . . . . 1049 . . . 327 . . . Electromagnetic . | . . . . . . . . . . . . . . . . . . . . . . . Impact 8996 | . . . . . 916 579 . . 975 1411 . . . 253 1456 55 1150 . 595 743 863 . Slashing 2326 | . . . . . 1671 . . . 404 220 . . . . 31 . . . . . . . Piercing . | . . . . . . . . . . . . . . . . . . . . . . . Highest Corruption 15 | . 2 2 1 . 1 1 2 2 1 6 6 6 6 6 4 4 4 4 . 15 15 4 Average Corruption 3 | . 2 1 1 . 1 1 2 2 1 5 6 6 6 6 1 4 4 4 . 13 7 4 Corruption Purged 16 | . . 1 . . . . . . . . . . . . . . . . . . 15 . Corruption Blocked . | . . . . . . . . . . . . . . . . . . . . . . . Effects 188 | . 11 43 6 . 3 1 5 . . 17 11 14 6 12 7 8 7 1 . 31 4 1 Message Errors 37 | . 4 10 . . 1 . 1 . . 1 3 3 1 3 . 4 . . . 4 1 1 Matter Fused 52 | . 3 11 2 . . 1 2 . . 6 3 5 1 4 2 1 2 . . 9 . . Heat Flow Errors 25 | . 2 5 3 . . . . . . 2 1 . 2 2 . . 1 . . 7 . . Energy Discharges 18 | . . 5 . . . . . . . 3 1 2 . 1 3 . . . . 3 . . Parts Rejected 3 | . . . . . . . . . . 1 . . . . . 1 . . . 1 . . Parts Fused 1 | . . . . . . . . . . . . . 1 . . . . . . . . . Data Loss (minor) 20 | . 1 4 1 . 2 . 1 . . 1 1 2 1 1 . 1 2 . . 1 1 . Data Loss (major) 14 | . . 4 . . . . 1 . . 1 . 1 . 1 2 . . . . 4 . . Misfires 8 | . 1 2 . . . . . . . 1 2 1 . . . . . . . . 1 . Alerts 8 | . . 2 . . . . . . . 1 . . . . . 1 2 1 . . 1 . Weapon Failures 2 | . . . . . . . . . . . . . . . . . . . . 2 . . Overload Shots . | . . . . . . . . . . . . . . . . . . . . . . . Overflow Damage 4132 | . . . . . 701 183 . . 631 736 . . . 118 522 6 390 . 264 190 391 . Projectiles 3313 | . . . . . 452 183 . . 619 596 . . . 118 454 . 390 . 263 . 238 . Explosions 116 | . . . . . . . . . 7 40 . . . . 68 . . . 1 . . . Melee 703 | . . . . . 249 . . . 5 100 . . . . . 6 . . . 190 153 . Knockbacks 56 | . . 3 . . 9 2 . . 4 7 . . . 5 10 1 3 . . 7 5 . Impact 45 | . . . . . 6 2 . . 4 5 . . . 3 10 1 3 . . 7 4 . Kinetic 4 | . . 3 . . 1 . . . . . . . . . . . . . . . . . Secondary 7 | . . . . . 2 . . . . 2 . . . 2 . . . . . . 1 . Self-Inflicted Damage 649 | . . . . . . . . . 282 3 . . . . 364 . . . . . . . Shots 19 | . . . . . . . . . 12 1 . . . . 6 . . . . . . . Rammed 5 | . 1 . 2 . . . . . . . . . . . 1 . . . . . . 1 Targets Rammed 5 | . 1 . 2 . . . . . . . . . . . 1 . . . . . . 1 Kicked . | . . . . . . . . . . . . . . . . . . . . . . . Crushed . | . . . . . . . . . . . . . . . . . . . . . . . Highest Temperature 422 | . 271 239 142 . 162 9 . . 4 346 268 108 249 212 85 . 155 . . 422 50 . Average Temperature 90 | . 99 69 52 . 49 9 . . 4 161 131 49 117 125 21 . 93 . . 125 17 . Received Heat Transfer 2517 | . 42 291 . . 409 48 . . 222 204 . 6 . . 259 . 74 . 15 860 87 . Effects 6 | . . 1 . . . . . . . 2 . . . . . . . . . 3 . . Shutdowns 2 | . . . . . . . . . . 2 . . . . . . . . . . . . Energy Bleed 1 | . . 1 . . . . . . . . . . . . . . . . . . . . Interference 3 | . . . . . . . . . . . . . . . . . . . . 3 . . Siege Activations . | . . . . . . . . . . . . . . . . . . . . . . . Robots Corrupted 33 | . . . . . 3 5 . . 4 5 . . . 1 4 1 . . 2 4 4 . Combat Hostiles 26 | . . . . . 3 5 . . 3 4 . . . 1 3 1 . . 2 1 3 . Parts Fried 34 | . . . . . 3 9 . . 3 4 . . . . 3 1 3 . 1 3 4 . Impact Corruptions 92 | . . . . . 8 7 . . 11 14 . . . 1 15 1 12 . 4 8 11 . Robots Melted 1 | . . . . . . . . . . . . . . . . . . . . 1 . . Combat Hostiles 1 | . . . . . . . . . . . . . . . . . . . . 1 . . Parts Melted 4 | . . 2 . . . . . . . . . . . . . . . . . 2 . . Heat Transferred 2699 | . 50 1225 74 . . . . . . . . . . . 50 . . . . 700 600 . Parts Sabotaged 1 | . . . . . . . . . . . . . . . . . . . . 1 . . Parts Stolen . | . . . . . . . . . . . . . . . . . . . . . . . Parts Stripped . | . . . . . . . . . . . . . . . . . . . . . . . Power Chain Reactions . | . . . . . . . . . . . . . . . . . . . . . . . Alert | -11 -10 -10 -9 -9 -6 -6 -6 -6 -5 -5 -5 -5 -5 -4 -4 -4 -4 -4 -3 -3 -3 -3 ------- Run | Yrd Mat Sub Rec Scr Fac Low Low Zio Pro Fac Upp Upp Zhi Pro Fac Upp Upp War Pro Res Qua Sec Peak Influence 1403 | 5 173 . 112 . 316 . . . . 1403 . . . . 598 . . . . 932 393 44 Initial 277 | . 3 . 27 . . . . . . 277 . . . . 21 . . . . 162 236 24 Average 262 | 3 55 . 52 . 118 . . . . 730 . . . . 222 . . . . 336 187 26 Maximum Alert Level 4 | . . . . . 1 . . . . 4 . . . . 2 . . . . 3 1 . Low Security (%) 58 | 100 100 . 100 . 87 . . . . . . . . . 53 . . . . 38 53 100 Level 1 18 | . . . . . 12 . . . . 10 . . . . 32 . . . . 26 46 . Level 2 12 | . . . . . . . . . . 40 . . . . 13 . . . . 19 . . Level 3 7 | . . . . . . . . . . 32 . . . . . . . . . 15 . . Level 4 2 | . . . . . . . . . . 16 . . . . . . . . . . . . Level 5 . | . . . . . . . . . . . . . . . . . . . . . . . High Security . | . . . . . . . . . . . . . . . . . . . . . . . Max Security . | . . . . . . . . . . . . . . . . . . . . . . . Squads Dispatched 39 | . . . . . 8 . . . 1 9 . . . . 11 . . . . 6 3 1 Investigation 13 | . . . . . 4 . . . 1 3 . . . . 3 . . . . 2 . . Extermination 6 | . . . . . 1 . . . . 1 . . . . 2 . . . . 1 1 . Reinforcement 13 | . . . . . 3 . . . . 2 . . . . 3 . . . . 2 2 1 Assault 4 | . . . . . . . . . . 3 . . . . . . . . . 1 . . Garrison 3 | . . . . . . . . . . . . . . . 3 . . . . . . . Intercept . | . . . . . . . . . . . . . . . . . . . . . . . Searches Triggered . | . . . . . . . . . . . . . . . . . . . . . . . Construction Impeded 5 | . . . . . 1 . . . . . . . . . 1 . . . . 2 1 . Haulers Reinforced 3 | . . . . . 1 . . . . 1 . . . . 1 . . . . . . . Active Scanning Responses . | . . . . . . . . . . . . . . . . . . . . . . . Cargo Convoy Interrupts . | . . . . . . . . . . . . . . . . . . . . . . . Stealth | -11 -10 -10 -9 -9 -6 -6 -6 -6 -5 -5 -5 -5 -5 -4 -4 -4 -4 -4 -3 -3 -3 -3 --------- Run | Yrd Mat Sub Rec Scr Fac Low Low Zio Pro Fac Upp Upp Zhi Pro Fac Upp Upp War Pro Res Qua Sec Distress Signals 10 | . 1 . . . 2 . . . . 1 . . . . 2 . . . . 3 1 . Communications Jammed 45 | . . . . . . . . . . . . . . . 17 . . . . 28 . . Distress Signals 45 | . . . . . . . . . . . . . . . 17 . . . . 28 . . Times Spotted 338 | . 8 26 1 . 33 11 . . 39 56 9 4 . 9 35 1 10 . 10 61 14 11 Peak Tracking Total 10 | . 5 3 1 . 5 4 . . 7 10 6 3 . 4 4 1 4 . 4 10 4 7 Tactical Retreats 38 | . 1 2 . . 1 . . . 4 10 3 . . 1 4 . . . 1 8 2 1 Traps | -11 -10 -10 -9 -9 -6 -6 -6 -6 -5 -5 -5 -5 -5 -4 -4 -4 -4 -4 -3 -3 -3 -3 ------- Run | Yrd Mat Sub Rec Scr Fac Low Low Zio Pro Fac Upp Upp Zhi Pro Fac Upp Upp War Pro Res Qua Sec Traps Triggered 5 | . 1 1 . . 1 . . . . . . . . . 2 . . . . . . . Indirectly . | . . . . . . . . . . . . . . . . . . . . . . . Trap Hack Attempts . | . . . . . . . . . . . . . . . . . . . . . . . Triggered . | . . . . . . . . . . . . . . . . . . . . . . . Disarmed . | . . . . . . . . . . . . . . . . . . . . . . . Reprogrammed . | . . . . . . . . . . . . . . . . . . . . . . . Reused . | . . . . . . . . . . . . . . . . . . . . . . . Traps Extracted . | . . . . . . . . . . . . . . . . . . . . . . . Installed . | . . . . . . . . . . . . . . . . . . . . . . . Triggered 12 | . . . . . . 1 . . . . 3 4 . . . . 4 . . . . . Most Traps Carried 4 | . . . . 3 3 3 3 3 3 3 . 4 4 4 4 4 4 4 4 4 4 . Machines | -11 -10 -10 -9 -9 -6 -6 -6 -6 -5 -5 -5 -5 -5 -4 -4 -4 -4 -4 -3 -3 -3 -3 ---------- Run | Yrd Mat Sub Rec Scr Fac Low Low Zio Pro Fac Upp Upp Zhi Pro Fac Upp Upp War Pro Res Qua Sec Machines Disabled 34 | . . 1 . . 2 . . . 2 3 2 . . . 19 1 . . . . 4 . Max in Single Turn 7 | . . 1 . . 1 . . . 1 . . . . . 7 1 . . . . 1 . Garrison Access 2 | . . . . . 1 . . . . 1 . . . . . . . . . . . . Machines Repaired . | . . . . . . . . . . . . . . . . . . . . . . . Machines Dismantled . | . . . . . . . . . . . . . . . . . . . . . . . Machines Sabotaged . | . . . . . . . . . . . . . . . . . . . . . . . Overloaded Fab Kills . | . . . . . . . . . . . . . . . . . . . . . . . Hacking | -11 -10 -10 -9 -9 -6 -6 -6 -6 -5 -5 -5 -5 -5 -4 -4 -4 -4 -4 -3 -3 -3 -3 --------- Run | Yrd Mat Sub Rec Scr Fac Low Low Zio Pro Fac Upp Upp Zhi Pro Fac Upp Upp War Pro Res Qua Sec Machines Accessed 65 | . 3 2 6 4 12 . 1 1 1 7 . 1 4 . 12 . . . . 6 5 . Terminals 28 | . 3 . 4 . 5 . . . 1 2 . . . . 6 . . . . 3 4 . Fabricators 4 | . . . . . 2 . . . . 1 . . . . 1 . . . . . . . Repair Stations 4 | . . . . . 1 . . . . 1 . . . . 2 . . . . . . . Recycling Units 12 | . . . 2 . 3 . . . . 2 . . . . 3 . . . . 2 . . Scanalyzers 2 | . . . . . . . . . . . . . . . . . . . . 1 1 . Garrison Access 2 | . . . . . 1 . . . . 1 . . . . . . . . . . . . Total Hacks 181 | . 14 4 13 11 20 . 1 3 7 15 . 1 17 . 36 . . . . 24 15 . Successful 109 | . 6 4 6 11 6 . 1 3 7 7 . 1 17 . 19 . . . . 14 7 . Failed 72 | . 8 . 7 . 14 . . . . 8 . . . . 17 . . . . 10 8 . Catastrophic 9 | . . . 1 . 2 . . . . 2 . . . . 3 . . . . 1 . . Database Lockouts . | . . . . . . . . . . . . . . . . . . . . . . . Manual 84 | . 15 . 3 . 15 . . . . 7 . . . . 23 . . . . 18 3 . Terminals 97 | . 14 . 11 . 8 . . . 7 5 . . . . 23 . . . . 18 11 . Fabricators 7 | . . . . . 4 . . . . 1 . . . . 2 . . . . . . . Repair Stations 12 | . . . . . 2 . . . . 3 . . . . 7 . . . . . . . Recycling Units 18 | . . . 2 . 5 . . . . 4 . . . . 4 . . . . 3 . . Scanalyzers 7 | . . . . . . . . . . . . . . . . . . . . 3 4 . Garrison Access 3 | . . . . . 1 . . . . 2 . . . . . . . . . . . . Terminal Hacks 81 | . 5 4 4 11 2 . 1 3 7 2 . 1 17 . 10 . . . . 9 5 . Record 20 | . . 3 . 5 . . . . 7 . . . 5 . . . . . . . . . Part Schematic 10 | . . . 2 . . . . 3 . . . . 4 . 1 . . . . . . . Robot Analysis 15 | . 3 . 1 5 . . . . . . . . 4 . . . . . . . 2 . Prototype ID Bank 5 | . . . 1 . . . . . . . . . 4 . . . . . . . . . Open Door 2 | . . . . . . . 1 . . . . 1 . . . . . . . . . . Branch Access Points 4 | . . . . . 1 . . . . 1 . . . . 1 . . . . 1 . . Machine Index 1 | . . . . . . . . . . . . . . . 1 . . . . . . . Terminal Index 1 | . . . . . 1 . . . . . . . . . . . . . . . . . Recycling Unit Index 3 | . . . . . . . . . . 1 . . . . 1 . . . . 1 . . Alert Level 4 | . . . . . . . . . . . . . . . 1 . . . . 2 1 . Unreport Threat 11 | . . . . . . . . . . . . . . . 4 . . . . 5 2 . Locate Traps 2 | . 1 . . . . . . . . . . . . . 1 . . . . . . . Zone Layout 1 | . 1 . . . . . . . . . . . . . . . . . . . . . Derelict Proto ID Bank 2 | . . 1 . 1 . . . . . . . . . . . . . . . . . . Fabricator Hacks 2 | . . . . . . . . . . 1 . . . . 1 . . . . . . . Network Status 2 | . . . . . . . . . . 1 . . . . 1 . . . . . . . Repair Station Hacks 6 | . . . . . . . . . . 2 . . . . 4 . . . . . . . Scan Component 3 | . . . . . . . . . . 1 . . . . 2 . . . . . . . Repair 3 | . . . . . . . . . . 1 . . . . 2 . . . . . . . Recycling Unit Hacks . | . . . . . . . . . . . . . . . . . . . . . . . Scanalyzer 5 | . . . . . . . . . . . . . . . . . . . . 3 2 . Insert Component 5 | . . . . . . . . . . . . . . . . . . . . 3 2 . Garrison Access Hacks 2 | . . . . . 1 . . . . 1 . . . . . . . . . . . . Seal Access 2 | . . . . . 1 . . . . 1 . . . . . . . . . . . . Unauthorized Hacks 13 | . 1 . 2 . 3 . . . . 1 . . . . 4 . . . . 2 . . Terminals 1 | . 1 . . . . . . . . . . . . . . . . . . . . . Operators 1 | . 1 . . . . . . . . . . . . . . . . . . . . . Fabricators 1 | . . . . . . . . . . . . . . . 1 . . . . . . . Haulers 1 | . . . . . . . . . . . . . . . 1 . . . . . . . Repair Stations 9 | . . . . . 3 . . . . 1 . . . . 3 . . . . 2 . . Recycling Units 2 | . . . 2 . . . . . . . . . . . . . . . . . . . Tunnel 2 | . . . 2 . . . . . . . . . . . . . . . . . . . Fedlink 6 | . . . . . 3 . . . . . . . . . 3 . . . . . . . Scrapoids 3 | . . . . . . . . . . 1 . . . . . . . . . 2 . . Scanalyzers . | . . . . . . . . . . . . . . . . . . . . . . . Garrison Access . | . . . . . . . . . . . . . . . . . . . . . . . Data Cores Recovered 1 | . . . . . . . . . . 1 . . . . . . . . . . . . Used 1 | . . . . . . . . . . 1 . . . . . . . . . . . . Hacking Detections 33 | . 3 . 3 . 4 . . . 1 5 . . . . 7 . . . . 5 5 . Full Trace Events 5 | . . . 1 . 1 . . . 1 2 . . . . . . . . . . . . Feedback Events 1 | . . . . . . . . . . 1 . . . . . . . . . . . . Hackware Fried 1 | . . . . . . . . . . 1 . . . . . . . . . . . . Feedback Blocked . | . . . . . . . . . . . . . . . . . . . . . . . Robot Schematics Acquired 4 | . . . . . . . . 4 . . . . . . . . . . . . . . Robots Built . | . . . . . . . . . . . . . . . . . . . . . . . Authchips . | . . . . . . . . . . . . . . . . . . . . . . . Time . | . . . . . . . . . . . . . . . . . . . . . . . Total Robot Build Rating . | . . . . . . . . . . . . . . . . . . . . . . . Part Schematics Acquired 24 | . . . 2 . . . . 17 . . . . 4 . 1 . . . . . . . Parts Built . | . . . . . . . . . . . . . . . . . . . . . . . Authchips . | . . . . . . . . . . . . . . . . . . . . . . . Time . | . . . . . . . . . . . . . . . . . . . . . . . Total Part Build Rating . | . . . . . . . . . . . . . . . . . . . . . . . Parts Repaired 3 | . . . . . . . . . . 1 . . . . 2 . . . . . . . Time 95 | . . . . . . . . . . 38 . . . . 57 . . . . . . . Parts Recycled . | . . . . . . . . . . . . . . . . . . . . . . . Recycled Matter . | . . . . . . . . . . . . . . . . . . . . . . . Retrieved Matter . | . . . . . . . . . . . . . . . . . . . . . . . Retrieved Components . | . . . . . . . . . . . . . . . . . . . . . . . Parts Scanalyzed 1 | . . . . . . . . . . . . . . . . . . . . . 1 . Part Schematics Acquired . | . . . . . . . . . . . . . . . . . . . . . . . Parts Damaged 1 | . . . . . . . . . . . . . . . . . . . . . 1 . Bothacking | -11 -10 -10 -9 -9 -6 -6 -6 -6 -5 -5 -5 -5 -5 -4 -4 -4 -4 -4 -3 -3 -3 -3 ------------ Run | Yrd Mat Sub Rec Scr Fac Low Low Zio Pro Fac Upp Upp Zhi Pro Fac Upp Upp War Pro Res Qua Sec Used RIF Installer . | . . . . . . . . . . . . . . . . . . . . . . . Robots Hacked 1 | . . . . . 1 . . . . . . . . . . . . . . . . . Non-combat 1 | . . . . . 1 . . . . . . . . . . . . . . . . . Combat . | . . . . . . . . . . . . . . . . . . . . . . . Robot Hacks Applied 1 | . . . . . 1 . . . . . . . . . . . . . . . . . find_recycling 1 | . . . . . 1 . . . . . . . . . . . . . . . . . Relay Couplers Released . | . . . . . . . . . . . . . . . . . . . . . . . Fabnet Peak Effective % . | . . . . . . . . . . . . . . . . . . . . . . . Robots Rewired 2 | . . . . . . . . . . . 2 . . . . . . . . . . . Allies Hacked . | . . . . . . . . . . . . . . . . . . . . . . . Hacks Repelled 1 | . . . . . . . . . . . . . . . . . . . . 1 . . Allies | -11 -10 -10 -9 -9 -6 -6 -6 -6 -5 -5 -5 -5 -5 -4 -4 -4 -4 -4 -3 -3 -3 -3 -------- Run | Yrd Mat Sub Rec Scr Fac Low Low Zio Pro Fac Upp Upp Zhi Pro Fac Upp Upp War Pro Res Qua Sec Total Allies 90 | . . 1 . . . . 4 . 6 15 10 2 . 5 11 6 8 . 6 16 . . Largest Group 9 | . . 1 1 . . . 4 4 4 8 6 6 6 6 5 4 4 4 4 9 . . Highest-Rated Group 638 | . . 19 19 . . . 324 324 324 444 416 416 416 416 338 324 324 298 306 638 . . Highest-Rated Ally 81 | . . 19 19 . . . 81 81 81 81 81 81 81 81 81 81 81 81 81 81 . . Total Orders 1 | . . . . . . . . . . . . . 1 . . . . . . . . . STAY 1 | . . . . . . . . . . . . . 1 . . . . . . . . . Ally Attacks 652 | . . 2 5 . . . . . 70 133 42 22 . 24 106 17 35 . 48 148 . . Total Damage 20898 | . . 47 76 . . . . . 2216 3692 2342 733 . 1006 2925 577 1746 . 1773 3765 . . Kills 158 | . . 2 1 . . . . . 14 31 21 6 . 10 22 5 13 . 12 21 . . Allies Corrupted 1 | . . . . . . . . . . 1 . . . . . . . . . . . . Allies Melted 4 | . . . . . . . . . 1 2 . . . . . . . . 1 . . . Intel | -11 -10 -10 -9 -9 -6 -6 -6 -6 -5 -5 -5 -5 -5 -4 -4 -4 -4 -4 -3 -3 -3 -3 ------- Run | Yrd Mat Sub Rec Scr Fac Low Low Zio Pro Fac Upp Upp Zhi Pro Fac Upp Upp War Pro Res Qua Sec Robot Analysis Total 15 | . 3 . 1 5 . . . . . . . . 4 . . . . . . . 2 . Derelict Logs Recovered 16 | . . 2 . 5 . 1 1 2 . . . 1 . 1 . 2 1 . . . . . Drone Launches . | . . . . . . . . . . . . . . . . . . . . . . . Drone Recoveries . | . . . . . . . . . . . . . . . . . . . . . . . Exploration | -11 -10 -10 -9 -9 -6 -6 -6 -6 -5 -5 -5 -5 -5 -4 -4 -4 -4 -4 -3 -3 -3 -3 ------------- Run | Yrd Mat Sub Rec Scr Fac Low Low Zio Pro Fac Upp Upp Zhi Pro Fac Upp Upp War Pro Res Qua Sec Turns Passed 22043 | 93 812 3563 538 4215 1652 308 401 1217 903 1226 453 632 187 444 1472 460 517 321 623 1237 733 36 Spaces Moved 13131 | 47 314 1998 254 2114 855 217 246 885 505 884 294 535 150 383 1142 291 266 163 342 702 481 63 Core 476 | 3 . . . . . . . . . 285 . . . . . . 8 8 10 11 88 63 Treads 2349 | 44 314 1241 254 485 . . . . . . . . . . . . . 1 . 10 . . Legs 2859 | . . . . . 850 217 246 885 505 156 . . . . . . . . . . . . Wheels 7447 | . . 757 . 1629 5 . . . . 443 294 535 150 383 1142 291 258 154 332 681 393 . Hover . | . . . . . . . . . . . . . . . . . . . . . . . Flight . | . . . . . . . . . . . . . . . . . . . . . . . Fastest Speed 50 | 50 160 120 160 90 125 125 125 135 135 50 104 104 92 104 95 95 100 110 110 80 50 50 Average Speed 140 | 152 160 149 202 195 139 125 152 135 136 101 104 104 103 104 105 143 150 184 152 121 94 50 Slowest Speed 1600 | 160 160 240 240 280 210 125 205 135 205 1100 104 116 104 104 170 170 1600 1600 1600 1500 120 50 Overloaded Moves . | . . . . . . . . . . . . . . . . . . . . . . . Propulsion Burnouts . | . . . . . . . . . . . . . . . . . . . . . . . Robots Hopped . | . . . . . . . . . . . . . . . . . . . . . . . Cave-ins Triggered . | . . . . . . . . . . . . . . . . . . . . . . . Exploration Rate (%) 49 | 5 60 93 60 90 34 38 44 85 54 22 48 61 62 61 44 50 44 30 68 30 45 9 Regions Visited 22 Branch Regions 17 Pre-discovered Areas 12 | . . 2 2 1 . . 1 1 . . . . 3 1 . . 1 . . . . . Known Exits Taken 6 | . . . . . 1 . . . . 1 1 1 . . 1 . . . . 1 . . Unknown Exits Taken 16 | 1 1 1 1 1 . 1 1 1 1 . . . 1 1 . 1 1 1 1 . 1 . Scrap Searched 33 | . . 6 . 9 . 2 1 1 2 . 2 4 . 2 . 1 1 . 2 . . . Spaces Dug 83 | . 1 1 . . 11 4 . . 35 . . . . . 2 . . . 20 7 2 . Terrain Destroyed 539 | . 1 1 2 . 30 11 . . 141 37 1 17 . 3 150 . 1 . 22 89 33 . Melee 22 | . . . . . 11 3 . . 1 . . . . . 2 . . . 1 2 2 . Projectile 194 | . 1 1 2 . 8 2 . . 3 7 1 17 . 3 28 . 1 . 2 87 31 . AOE 323 | . . . . . 11 6 . . 137 30 . . . . 120 . . . 19 . . . Terrain Rammed . | . . . . . . . . . . . . . . . . . . . . . . . Walls Destroyed . | . . . . . . . . . . . . . . . . . . . . . . . Machines Disabled . | . . . . . . . . . . . . . . . . . . . . . . . Actions | -11 -10 -10 -9 -9 -6 -6 -6 -6 -5 -5 -5 -5 -5 -4 -4 -4 -4 -4 -3 -3 -3 -3 --------- Run | Yrd Mat Sub Rec Scr Fac Low Low Zio Pro Fac Upp Upp Zhi Pro Fac Upp Upp War Pro Res Qua Sec Total 15928 | 63 549 2350 272 2214 1180 242 270 908 672 1161 439 605 181 424 1353 330 368 184 427 972 697 67 Wait 1373 | . 195 167 3 1 96 2 8 1 95 161 50 40 5 21 115 27 75 16 64 101 129 1 Move 13110 | 46 313 1997 253 2113 854 216 245 884 504 883 293 534 149 382 1142 290 265 162 341 701 480 63 Hop . | . . . . . . . . . . . . . . . . . . . . . . . Pick Up 195 | 8 7 21 2 49 15 . 4 8 3 17 7 6 2 4 12 4 4 . 2 17 3 . Fast Attach 128 | 4 1 7 1 13 16 2 2 . 8 19 . 3 10 1 5 1 3 3 . 15 12 2 Attach 88 | 3 . 9 . 2 20 . 1 2 5 10 2 2 2 2 11 2 1 . 2 8 4 . Detach 32 | . 1 1 2 2 3 . . 1 6 5 . 2 . 2 2 1 . . . 1 3 . Swap 92 | . 2 32 1 1 17 2 3 3 6 2 2 4 2 2 4 . . . 3 5 1 . Drop 215 | . 1 24 5 33 31 3 6 8 12 18 2 9 11 4 11 3 4 3 2 15 10 . Fire 487 | 2 28 92 3 . 66 14 . . 18 42 2 5 . 6 45 . 16 . 12 95 41 . Melee 113 | . . . . . 52 3 1 1 15 4 . . . . 6 2 . . 1 14 14 . Ram 1 | . . . . . . . . . . . . . . . . . . . . . . 1 Kick . | . . . . . . . . . . . . . . . . . . . . . . . Crush 3 | . 1 . 2 . . . . . . . . . . . . . . . . . . . Escape Stasis 5 | . . . . . 5 . . . . . . . . . . . . . . . . . Rewire 81 | . . . . . . . . . . . 81 . . . . . . . . . . . Trap . | . . . . . . . . . . . . . . . . . . . . . . . Miscellaneous 5 | . . . . . 5 . . . . . . . . . . . . . . . . . Route ------- -11/Scrapyard -10/Materials (discovered 3 exits: [*Mat x2] / *Sub) -10/Subcaves (discovered 3 exits: [*Mat x2] / *Rec) -9/Recycling (discovered 2 exits: [*Fac] / *Scr) -9/Scraptown (discovered 2 exits: *Fac x2) -6/Factory (discovered 2 exits: *Low x2) -6/Lower Caves -6/Lower Caves -6/Zion -5/Proximity Caves -5/Factory (discovered 3 exits: *Fac / *Upp x2) -5/Upper Caves -5/Upper Caves -5/Zhirov -4/Proximity Caves -4/Factory (discovered 6 exits: *Res x2 / *Upp x2 / *Ext x2) -4/Upper Caves -4/Upper Caves (discovered 2 exits: *Res / [*War]) -4/Warlord -3/Proximity Caves -3/Research (discovered 5 exits: *Res x2 / Arm / *Qua x2) -3/Quarantine -3/Section 7 History --------- Turn | Location | Event 67 | -11/Scrapyard | Discovered new exit (range 15) 94 | -11/Scrapyard | Entered Materials 295 | -10/Materials | Discovered new exit (range 3) 309 | -10/Materials | Build established: Mutant 439 | -10/Materials | Discovered new exit (range 5) 902 | -10/Materials | Discovered new exit (range 4) 906 | -10/Materials | Entered Subcaves 907 | -10/Subcaves | Shifting Twisted Machinery released Sub. Monowheel 908 | -10/Subcaves | Shifting Twisted Machinery released Sub. Laser 914 | -10/Subcaves | Learned location of Storage (-9) 1020 | -10/Subcaves | A swath of the cavern ceiling suddenly collapsed 1097 | -10/Subcaves | Learned Materials garrison access intel 1230 | -10/Subcaves | Discovered new exit (range 11) 1633 | -10/Subcaves | Ambushed by Subdwellers from Twisted Machinery 2382 | -10/Subcaves | A Subdweller sparked back to life 2382 | -10/Subcaves | A Subdweller sparked back to life 2382 | -10/Subcaves | A Subdweller sparked back to life 2442 | -10/Subcaves | Found Prototype Leg 2502 | -10/Subcaves | Learned location of Zion (-6) 2502 | -10/Subcaves | Met a Zionite searching for "candidates" 2653 | -10/Subcaves | Disturbed a concealed Subdweller 2779 | -10/Subcaves | Build established: Scavenger-Mutant 3080 | -10/Subcaves | Discovered new exit (range 5) 3118 | -10/Subcaves | Disturbed a concealed Subdweller 3130 | -10/Subcaves | Core integrity fell below 50% 3259 | -10/Subcaves | Visited 4L-MR0's lab 3264 | -10/Subcaves | Identified Cargo Legs 3286 | -10/Subcaves | Found Gun Armor 3549 | -10/Subcaves | A swath of the cavern ceiling suddenly collapsed 3776 | -10/Subcaves | Shifting Twisted Machinery released Scrap Shield 3875 | -10/Subcaves | Visited Clippyterm 3879 | -10/Subcaves | Learned Factory garrison access intel 3948 | -10/Subcaves | Shifting Twisted Machinery released Sub. Machine Gun 4051 | -10/Subcaves | Visited triangular shrine 4059 | -10/Subcaves | Found Prototype Device 4059 | -10/Subcaves | Identified V3-11A's Pendant 4064 | -10/Subcaves | Befriended Subdweller 4464 | -10/Subcaves | Discovered new exit (range 3) 4469 | -10/Subcaves | Entered Recycling 4469 | -9/Recycling | Accompanied by 1 ally 4738 | -9/Recycling | Discovered new exit (range 4) 4961 | -9/Recycling | Scanned before Scraplab entrance 4991 | -9/Recycling | Entered Scraplab 5004 | -9/Recycling | Discovered new exit (range 2) 5007 | -9/Recycling | Entered Scraptown 5007 | -9/Scraptown | System corruption cleaned by C-Scrubber 5172 | -9/Scraptown | Delivered V3-11A's Pendant to T0-NE2 in exchange for information 5375 | -9/Scraptown | Scanned Subdweller tech in exchange for log data 5378 | -9/Scraptown | Learned location of Extension (-4) 5380 | -9/Scraptown | Learned Research stockpile data 5382 | -9/Scraptown | Learned location of 1 exit from Research 5383 | -9/Scraptown | Learned Research trap positions 5386 | -9/Scraptown | Learned Factory stockpile data 5615 | -9/Scraptown | Discovered new exit (range 11) 5711 | -9/Scraptown | Visited Observation Area 5726 | -9/Scraptown | Visited Fellowship of the Rings 5762 | -9/Scraptown | Visited Bundlers 6009 | -9/Scraptown | Visited The Evicted 6098 | -9/Scraptown | Build established: Hauler-Mutant 6316 | -9/Scraptown | Visited Awakened 6333 | -9/Scraptown | Visited Red Mages 6431 | -9/Scraptown | Visited Junk Repository 6574 | -9/Scraptown | Visited UFD Registry 6574 | -9/Scraptown | Registered with UFD as "Steelshaft" 6641 | -9/Scraptown | Visited Junk Cannon Lab 6657 | -9/Scraptown | Found Prototype Special Weapon 6657 | -9/Scraptown | Identified Junk Cannon 6748 | -9/Scraptown | Visited Curators Association 6781 | -9/Scraptown | Visited Derelict Rescue Squad 6798 | -9/Scraptown | Found DRS Beacon 6837 | -9/Scraptown | Visited Scrapoid Research Area 6890 | -9/Scraptown | Visited Abandonware Association 6932 | -9/Scraptown | Learned abandonware demo "HACKBUD.EXE" 6932 | -9/Scraptown | Learned abandonware demo "SHUTEYE.EXE" 6984 | -9/Scraptown | Visited Analyses Database 7058 | -9/Scraptown | Visited Infowarlord's Domain 7069 | -9/Scraptown | Found Spectral Analyzer 7147 | -9/Scraptown | Delivered Scrap Shield to a Scientist 7391 | -9/Scraptown | Visited Chapter 10 7429 | -9/Scraptown | Visited LU-1G1's Boring Crew 7458 | -9/Scraptown | Visited Science Guys 8715 | -9/Scraptown | Found Scrap Suit 8765 | -9/Scraptown | Discovered new exit (range 3) 9186 | -9/Scraptown | Found Scrap Suit 9222 | -9/Scraptown | Entered Factory 9222 | -6/Factory | Evolved 8 slots: Propulsion x1, Utility x6, Weapon x1 9224 | -6/Factory | Loaded intel: 4 garrison access locations 9242 | -6/Factory | Attached Cargo Legs, gained temporary slots: Utility x2 9253 | -6/Factory | Attached Gun Armor, gained temporary slots: Weapon x2 9432 | -6/Factory | Lost 3 parts (2u1w) 9561 | -6/Factory | Build established: Hacker-Mutant 10677 | -6/Factory | Identified exit to Lower Caves 10692 | -6/Factory | Spotted B-75 Beast 10707 | -6/Factory | Destroyed B-75 Beast 10874 | -6/Factory | Entered Lower Caves 10876 | -6/Lower Caves | UFD Scientist delivered a prototype 10894 | -6/Lower Caves | Found Prototype Protection 10894 | -6/Lower Caves | Identified Enh. Scrap Shield 10997 | -6/Lower Caves | Attracted the attention of an 0b10 checkpoint 11161 | -6/Lower Caves | Discovered new exit (range 18) 11182 | -6/Lower Caves | Entered another Lower Caves area 11226 | -6/Lower Caves | Build established: Mutant 11296 | -6/Lower Caves | Prototype Device suddenly appears! 11308 | -6/Lower Caves | Found Prototype Device 11309 | -6/Lower Caves | Identified Amulet of Y3-NDR 11334 | -6/Lower Caves | Joined by bewildered Wizard 11339 | -6/Lower Caves | Joined by bewildered Wizard 11339 | -6/Lower Caves | Joined by bewildered Wizard 11423 | -6/Lower Caves | Joined by bewildered Wizard 11457 | -6/Lower Caves | Encountered a Warlord checkpoint 11539 | -6/Lower Caves | Discovered new exit (range 8) 11583 | -6/Lower Caves | Entered Zion 11583 | -6/Zion | Accompanied by 4 allies 11639 | -6/Zion | System corruption cleaned by Quarantine Array 11770 | -6/Zion | Found Prototype Launcher 11777 | -6/Zion | Found Prototype Launcher 11815 | -6/Zion | Discovered new exit (range 12) 11840 | -6/Zion | Identified Rocket Array 11858 | -6/Zion | Identified Gui. Missile Launcher 12125 | -6/Zion | Given A8's code to call for help 12217 | -6/Zion | Turned away by Imprinter 12360 | -6/Zion | Learned 4 Factory zone layouts 12415 | -6/Zion | Learned Factory trap positions 12800 | -6/Zion | Entered Proximity Caves 12800 | -5/Proximity Caves | Accompanied by 4 allies 12943 | -5/Proximity Caves | Attracted the attention of an 0b10 base 12950 | -5/Proximity Caves | Joined by bewildered Wizard 12989 | -5/Proximity Caves | Destroyed 10 combat bots 12993 | -5/Proximity Caves | Lost 4 allies 13032 | -5/Proximity Caves | Learned location of 2 exits from Upper Caves 13032 | -5/Proximity Caves | Learned Research trap positions 13032 | -5/Proximity Caves | Learned Factory emergency access door positions 13032 | -5/Proximity Caves | Learned Armory security intel 13098 | -5/Proximity Caves | Found Imp. Powered Armor 13104 | -5/Proximity Caves | Joined by bewildered Wizard 13104 | -5/Proximity Caves | Joined by bewildered Wizard 13131 | -5/Proximity Caves | Joined by bewildered Wizard 13133 | -5/Proximity Caves | Joined by bewildered Wizard 13256 | -5/Proximity Caves | Spotted B-75 Beast 13312 | -5/Proximity Caves | Lost 4 allies 13371 | -5/Proximity Caves | Joined by bewildered Wizard 13521 | -5/Proximity Caves | Attracted the attention of an 0b10 checkpoint 13618 | -5/Proximity Caves | Lost 3 parts (1p2u) 13676 | -5/Proximity Caves | Discovered new exit (range 8) 13697 | -5/Proximity Caves | Core integrity fell below 50% 13703 | -5/Proximity Caves | Entered Factory 13703 | -5/Factory | Evolved 2 slots: Power x1, Utility x1 13705 | -5/Factory | Loaded intel: 72 trap records 13753 | -5/Factory | Joined by bewildered Wizard 13753 | -5/Factory | Joined by bewildered Wizard 13753 | -5/Factory | Joined by bewildered Wizard 13779 | -5/Factory | Joined by bewildered Wizard 13858 | -5/Factory | Repaired Imp. Weapon Shielding 13868 | -5/Factory | Spotted B-75 Beast 13880 | -5/Factory | Allies destroyed B-75 Beast 13931 | -5/Factory | Lost 4 allies 14271 | -5/Factory | Core integrity fell below 50% 14294 | -5/Factory | Discovered new exit (range 24) 14303 | -5/Factory | First assault squad dispatched 14331 | -5/Factory | Scrapoid reinforcements arrived 14429 | -5/Factory | Lost 3 allies 14439 | -5/Factory | Found Scrap Suit 14707 | -5/Factory | Identified exit to Upper Caves 14726 | -5/Factory | Imp. System Shield fried by hacking feedback 14929 | -5/Factory | Entered Upper Caves 14930 | -5/Upper Caves | Identified exit to Upper Caves 14983 | -5/Upper Caves | Joined by bewildered Wizard 14984 | -5/Upper Caves | Joined by bewildered Wizard 14991 | -5/Upper Caves | Joined by bewildered Wizard 14992 | -5/Upper Caves | Joined by bewildered Wizard 15175 | -5/Upper Caves | Build established: Scavenger-Scrapper 15209 | -5/Upper Caves | Joined by bewildered Wizard 15219 | -5/Upper Caves | Joined by bewildered Wizard 15261 | -5/Upper Caves | Lost 4 allies 15342 | -5/Upper Caves | Joined by bewildered Wizard 15343 | -5/Upper Caves | Joined by bewildered Wizard 15382 | -5/Upper Caves | Entered another Upper Caves area 15382 | -5/Upper Caves | Accompanied by 6 allies 15383 | -5/Upper Caves | Identified exit to Zhirov 15485 | -5/Upper Caves | Learned location of 1 exit from Factory 15631 | -5/Upper Caves | Joined by bewildered Wizard 16014 | -5/Upper Caves | Entered Zhirov 16014 | -5/Zhirov | Accompanied by 6 allies 16014 | -5/Zhirov | Discovered new exit (range 4) 16036 | -5/Zhirov | Met Zhirov 16059 | -5/Zhirov | Learned location of Testing (-2) 16059 | -5/Zhirov | Learned location of Command (-1) 16065 | -5/Zhirov | Zhirov requested help retrieving the SGEMP Prototype 16081 | -5/Zhirov | Found Alien Artifact 16081 | -5/Zhirov | Identified Integrated Dissipator 16081 | -5/Zhirov | Installed Integrated Dissipator, increased core heat dissipation (+20) 16155 | -5/Zhirov | Found Alien Artifact 16201 | -5/Zhirov | Entered Proximity Caves 16201 | -4/Proximity Caves | Accompanied by 6 allies 16458 | -4/Proximity Caves | Joined by bewildered Wizard 16472 | -4/Proximity Caves | Attracted the attention of an 0b10 checkpoint 16571 | -4/Proximity Caves | Joined by bewildered Wizard 16583 | -4/Proximity Caves | Joined by bewildered Wizard 16588 | -4/Proximity Caves | Lost 6 allies 16619 | -4/Proximity Caves | Joined by bewildered Wizard 16620 | -4/Proximity Caves | Joined by bewildered Wizard 16627 | -4/Proximity Caves | Discovered new exit (range 15) 16645 | -4/Proximity Caves | Entered Factory 16645 | -4/Factory | Accompanied by 4 allies 16645 | -4/Factory | Evolved 2 slots: Utility x2 16646 | -4/Factory | Identified exit to Extension 16647 | -4/Factory | Identified exit to Upper Caves 16805 | -4/Factory | Repaired Imp. Weapon Shielding 16814 | -4/Factory | Discovered new exit (range 13) 16901 | -4/Factory | Joined by bewildered Wizard 17020 | -4/Factory | Joined by bewildered Wizard 17055 | -4/Factory | Joined by bewildered Wizard 17056 | -4/Factory | Joined by bewildered Wizard 17137 | -4/Factory | Lost 3 allies 17154 | -4/Factory | Joined by bewildered Wizard 17155 | -4/Factory | Joined by bewildered Wizard 17243 | -4/Factory | Joined by bewildered Wizard 17244 | -4/Factory | Joined by bewildered Wizard 17263 | -4/Factory | Garrison activated, responded to threat 17329 | -4/Factory | Spotted B-86 Titan 17703 | -4/Factory | Build established: Hacker-Tank 17913 | -4/Factory | Repaired Imp. Weapon Shielding? 17966 | -4/Factory | Discovered new exit (range 17) 18012 | -4/Factory | Build established: Hacker-Mutant 18117 | -4/Factory | Entered Upper Caves 18140 | -4/Upper Caves | Lost 5 parts (1p4u) 18176 | -4/Upper Caves | Found Alien Artifact 18205 | -4/Upper Caves | Joined by bewildered Wizard 18206 | -4/Upper Caves | Joined by bewildered Wizard 18228 | -4/Upper Caves | Joined by bewildered Wizard 18229 | -4/Upper Caves | Joined by bewildered Wizard 18350 | -4/Upper Caves | Build established: Wizard-Mutant 18350 | -4/Upper Caves | Spotted B-86 Titan 18365 | -4/Upper Caves | Allies destroyed B-86 Titan 18421 | -4/Upper Caves | Found Unknown Protection 18421 | -4/Upper Caves | Identified Hvy. Reflective Plating 18468 | -4/Upper Caves | Learned 12 Research zone layouts 18535 | -4/Upper Caves | Joined by bewildered Wizard 18535 | -4/Upper Caves | Joined by bewildered Wizard 18548 | -4/Upper Caves | Discovered new exit (range 5) 18563 | -4/Upper Caves | Learned location of 1 exit from Research 18568 | -4/Upper Caves | Ambushed by wild Derelicts 18577 | -4/Upper Caves | Entered another Upper Caves area 18577 | -4/Upper Caves | Accompanied by 3 allies 18578 | -4/Upper Caves | Encountered a Warlord checkpoint 18597 | -4/Upper Caves | Discovered new exit (range 17) 18605 | -4/Upper Caves | Learned location of Armory (-3) 18708 | -4/Upper Caves | Build established: Hacker-Mutant 18736 | -4/Upper Caves | Found DCF Scrap (10 items) 18806 | -4/Upper Caves | Joined by bewildered Wizard 18807 | -4/Upper Caves | Joined by bewildered Wizard 18808 | -4/Upper Caves | Joined by bewildered Wizard 18829 | -4/Upper Caves | Spotted B-86 Titan 18831 | -4/Upper Caves | Joined by bewildered Wizard 18840 | -4/Upper Caves | Allies destroyed B-86 Titan 18862 | -4/Upper Caves | Joined by bewildered Wizard 18868 | -4/Upper Caves | Found Hvy. Reflective Plating 18927 | -4/Upper Caves | Lost 3 allies 18974 | -4/Upper Caves | Joined by bewildered Wizard 18975 | -4/Upper Caves | Joined by bewildered Wizard 18999 | -4/Upper Caves | Joined by bewildered Wizard 19077 | -4/Upper Caves | Discovered new exit (range 10) 19094 | -4/Upper Caves | Entered Warlord 19094 | -4/Warlord | Accompanied by 4 allies 19130 | -4/Warlord | System corruption cleaned by Quarantine Array 19396 | -4/Warlord | Discovered new exit (range 12) 19415 | -4/Warlord | Entered Proximity Caves 19415 | -3/Proximity Caves | Accompanied by 4 allies 19442 | -3/Proximity Caves | Joined by bewildered Wizard 19442 | -3/Proximity Caves | Joined by bewildered Wizard 19442 | -3/Proximity Caves | Joined by bewildered Wizard 19462 | -3/Proximity Caves | Lost 4 allies 19495 | -3/Proximity Caves | Joined by bewildered Wizard 19825 | -3/Proximity Caves | Spotted B-86 Titan 19853 | -3/Proximity Caves | Destroyed B-86 Titan 19931 | -3/Proximity Caves | Joined by bewildered Wizard 19934 | -3/Proximity Caves | Joined by bewildered Wizard 20029 | -3/Proximity Caves | Discovered new exit (range 3) 20038 | -3/Proximity Caves | Entered Research 20038 | -3/Research | Accompanied by 3 allies 20038 | -3/Research | Evolved 2 slots: Utility x2 20039 | -3/Research | Identified exit to Research 20039 | -3/Research | Identified exit to Armory 20041 | -3/Research | Loaded intel: 60 trap records 20066 | -3/Research | Joined by bewildered Wizard 20134 | -3/Research | Scrapoid reinforcements arrived 20304 | -3/Research | Found Scrap Suit 20329 | -3/Research | Lost 4 allies 20357 | -3/Research | Identified exit to Quarantine 20485 | -3/Research | Joined by bewildered Wizard 20487 | -3/Research | Joined by bewildered Wizard 20487 | -3/Research | Joined by bewildered Wizard 20505 | -3/Research | Joined by bewildered Wizard 20593 | -3/Research | Spotted B-86 Titan 20646 | -3/Research | Lost 5 allies 20655 | -3/Research | Found Prototype Processor 20719 | -3/Research | Identified Exp. Targeting Computer 20722 | -3/Research | System corruption reached 10% 20788 | -3/Research | First assault squad dispatched 20856 | -3/Research | Discovered exit to Research (range 18) 20892 | -3/Research | Spotted B-86 Titan 20916 | -3/Research | Lost 7 parts (1p3u3w) 20946 | -3/Research | Scrapoid reinforcements arrived 20962 | -3/Research | Allies destroyed B-86 Titan 20974 | -3/Research | Lost 3 parts (1p1n1u) 20991 | -3/Research | Found Scrap Suit 21011 | -3/Research | Lost 5 allies 21049 | -3/Research | Found Hvy. Reflective Plating 21138 | -3/Research | Found Prototype Device 21147 | -3/Research | Found Prototype Device 21275 | -3/Research | Entered Quarantine 21377 | -3/Quarantine | Identified Exp. Thermal Shield (x2) 21566 | -3/Quarantine | Found Alien Impact Weapon 21590 | -3/Quarantine | Found Alien Artifact 21823 | -3/Quarantine | Core integrity fell below 50% 21872 | -3/Quarantine | Lost 8 parts (2p1n5u) 21968 | -3/Quarantine | Spotted Fortress 21972 | -3/Quarantine | Core integrity fell below 20% 21996 | -3/Quarantine | Lost 6 parts (1n2u3w) 22004 | -3/Quarantine | Discovered new exit (range 6) 22008 | -3/Quarantine | Entered Section 7 22044 | -3/Section 7 | Destroyed by S-43 Plague with Heavy Machine Gun Last Messages --------------- 21951_ Ovr. Railgun destroyed. 21957_ U-05 Engineer builds a Wall. 21958_ Ovr. Quantum Rifle destroyed. 21960_ Ovr. Huge Scrapsphere suddenly begins malfunctioning. 21961_ Powered Hammer destroyed. 21962_ Structural Scanner destroyed. 21963_ Wheel destroyed. 21965_ Exp. Thermal Shield destroyed. 21970_ Knocked back. 21976_ Machine disabled. 21984_ System corrupted: IFF burst signal emitted. 22004_ EXIT=FOUND LOCATION=UNKNOWN GOAL=ESCAPE 22015_ Y4ZJJMP 22044_ Slammed into S-43 Plague. Map ----- +----------------------------------------------------+ | | | | | | | ######???????????????????????????????????????????? | | " ???????????????????????????????????????????? | | "" ???????????????????????????????????????????? | | "" ????????????????????????????????????????????? | | ????????????????????????????????????????????? | | ?????????????????????????????????????????????? | | ???????###########+##########????????????????? | | +#+######### ????????????????? | | + # ????????????????? | | # """ # """"" ???????????????????? | | # """ # ""T"" ??????????????????????? | | # """ # #?????????????????????????? | | # """ # #?????????????????????????? | | # """ # !!! === #??????#??????????????????? | | # + !!! === #????? #??????????????????? | | # "" # !! === #????? #??????????????????? | | # """ # #???? #??????????????????? | | # S" # #???? #??????????????????? | | # """ # ##########? #??????????????????? | | # """ # # #? #??????????????????? | | # # # """ = # ############ ""????? | | ######## + "R s # ? | | #??????# # """ s @s ? | | #??????# # "" s A# """ """ """ "??????? | | +??????# # R # """ """????????????? | | #??????# # ! #? """ """????????????? | | " #??????# # ! #? g g???????????? | | " #??????# # !! #?? gg ?????????? | | " #??????+ ##########?? ### ##"""?????????? | | #??????# #???????????? #???#?????????????? | | ? ???????# #???????????? #?????????????????? | | ? ???????# #????????????? #?????????????????? | | ???????????# #?????????????+#?????????????????? | | ???????????# #????????????????????????????????? | | ???????????# #????????????????????????????????? | | ???????????# #????????????????????????????????? | | ???????????# #????????????????????????????????? | | ???????????# ?????????????????????????????????? | | ??????????? ?????????????????????????????????? | | ???????????##+#/?????????????????????????????????? | | ??????????????? ?????????????????????????????????? | | ??????????????? ?????????????????????????????????? | | ???????????????"?????????????????????????????????? | | ?????????????????????????????????????????????????? | | ?????????????????????????????????????????????????? | | ?????????????????????????????????????????????????? | | ?????????????????????????????????????????????????? | +----------------------------------------------------+ Best States ------------- Heat Dissipation 66 Coolant Potential 120 Energy Generation 43 Energy Capacity 580 Matter Stores 300 Matter Capacity 300 Sight Range 24 Terrain Scan Density 10 Jamming Range 16 Armor Coverage 1310 Resistance: TH 30 Utility Shielding 66 Weapon Shielding 66 Weapon Cycling 30 Evasion (%) 65 Recoil Reduction 2 Offensive Hacking 70 Defensive Hacking 24 Trap Extractor Capacity 6 Item Schematics ----------------- Adv. ECM Suite | -9/Recycling | Hacked Armor Integrity Analyzer | -9/Recycling | Hacked Imp. Hacking Suite | -6/Zion | Archive Imp. Coolant Injector | -6/Zion | Archive Adv. Sensor Array | -6/Zion | Archive Imp. Weapon Cycler | -6/Zion | Archive Focal Shield | -6/Zion | Archive Adv. Actuator Array | -6/Zion | Archive Adv. Coolant Injector | -6/Zion | Archive Thermic Laser | -6/Zion | Archive Enh. Gauss Cannon | -6/Zion | Archive Adv. Terrain Scanner | -6/Zion | Archive Lrn. Proton Cannon | -6/Zion | Archive Antigrav System | -6/Zion | Archive Imp. Proton Missile Launcher | -6/Zion | Archive Imp. Plasma Cutter | -6/Zion | Archive Battle Cannon | -6/Zion | Free Hvy. Riot Gun | -6/Zion | Free Slug Cannon | -6/Zion | Free Assault Drone Bay | -5/Zhirov | Free Exp. Heat Sink | -5/Zhirov | Free Exp. Optical Array | -5/Zhirov | Free Imp. Arc Thrower | -5/Zhirov | Free Cmb. Linear Gravjet | -4/Factory | Hacked Robot Schematics ------------------ R-10 Processor | -6/Zion | Archive T-07 Excavator | -6/Zion | Archive M-28 Smith | -6/Zion | Archive X-77 Beamer | -6/Zion | Archive Fabricated ------------ Nothing Alien Tech Used ----------------- Integrated Dissipator Achievements -------------- None Challenges ------------ None Game ------ Seed TractorModifiedSaw Manual? 0 Play Time 02:32:25 Cumulative 781.4 hours Start 2024.08.12 @ 01:35:33 End 2024.08.12 @ 16:30:28 Sessions 3 Manual Loads 0 Difficulty Rogue Special Mode None Game No. 760 Rogue 760 Adventurer 0 Explorer 0 Win Type - Total 39 Types 14/4/11/2/0/0/5/2/1 Lore% 88 Gallery% 91 Achievement% 84 Wizard Run 0 Options --------- Layout 0 ASCII 0 Keyboard 0 Movement Numpad Keybinds 0 Fullscreen 1 Font 18/Smallcaps Map View 76x50 Zoom Use 0% Tactical HUD 1 Map Filters NONE Filters NONE Steam 1 RUN: dd547f2f-99f9-43ff-a010-281cf5b5645d